Cogmind - Beta 16 --- EXPLORER MODE // 2025.11.13 @ 10:27:55 Player: K.K.Y. Result: Destroyed by RC-IWK(R) with Subdweller Machine Gun Performance ------------- Evolutions (0) 0 Regions Visited (2) 400 Robots Destroyed (18) 90 Value Destroyed (549) 549 Prototype IDs (2) 40 Alien Tech Used (0) 0 Bonus (0) 0 TOTAL SCORE: 1079 Bonus ------- None Cogmind --------- Core Integrity 0/250 Matter 294/300 Energy 249/250 System Corruption 0% Temperature Cool (0) Movement Core (500) Ox9 Location -10/Subcaves Parts ------- > --- POWER (1) -------- Ion Engine > --- PROPULSION (3) --- (None) > --- UTILITY (2) ------ Large Storage Unit > --- WEAPON (2) ------- Autogun > --- INVENTORY (15) --- Improved Heat Sink Huge Storage Unit Structural Scanner Sensor Array Signal Interpreter Terrain Scanner Transport Network Coupler Salvage Targeting Computer Light Armor Plating EM Pulse Gun Spread Laser Spread Laser Assault Rifle Autogun Peak State ------------ > --- POWER ------------ Ion Engine > --- PROPULSION ------- Aluminum Leg Aluminum Leg Aluminum Leg > --- UTILITY ---------- Large Storage Unit Light Armor Plating > --- WEAPON ----------- EM Pulse Gun Spread Laser > --- INVENTORY -------- Improved Heat Sink Huge Storage Unit Structural Scanner Terrain Scanner Transport Network Coupler Salvage Targeting Computer Spread Laser Assault Rifle Autogun Autogun Mining Laser [Rating: 10] Favorites ----------- Power Ion Engine Engine Ion Engine Propulsion Aluminum Leg Leg Aluminum Leg Utility Large Storage Unit Storage Large Storage Unit Protection Light Armor Plating Weapon Mining Laser Energy Gun EM Pulse Gun Ballistic Gun Autogun Special Weapon Mining Laser Build | -11 -10 -10 ------- Run | Yrd Mat Sub Slots Evolved 1 | . 1 . Power . | . . . Propulsion 1 | . 1 . Utility . | . . . Weapon . | . . . Parts Attached 13 | 7 4 2 Power 1 | 1 . . Engine 1 | 1 . . Core . | . . . Reactor . | . . . Propulsion 3 | 2 1 . Treads . | . . . Leg 3 | 2 1 . Wheel . | . . . Hover . | . . . Flight . | . . . Utility 3 | 2 1 . Device . | . . . Storage 2 | 1 1 . Processor . | . . . Hackware . | . . . Protection 1 | 1 . . Artifact . | . . . Weapon 6 | 2 2 2 Energy Gun 2 | 1 1 . Energy Cannon . | . . . Ballistic Gun 3 | 1 . 2 Ballistic Cannon . | . . . Launcher . | . . . Special Weapon 1 | . 1 . Impact Weapon . | . . . Slashing Weapon . | . . . Piercing Weapon . | . . . Special Melee Weapon . | . . . Unidentified Prototypes . | . . . Parts Lost 4 | . . 4 Power . | . . . Propulsion 3 | . . 3 Utility . | . . . Weapon 1 | . . 1 Highest Loss Streak 2 | . . 2 To Critical Strikes . | . . . Average Backups 11 | . 8 14 Power . | . . . Propulsion . | . . . Utility 7 | . 5 9 Weapon 4 | . 3 5 Tool/Special . | . . . Unused Backups 10 | . 1 9 Power . | . . . Propulsion . | . . . Utility 8 | . . 8 Weapon 2 | . 1 1 Tool/Special . | . . . Average Slot Usage (%) 84 | . 98 73 Engine 12 | . 12 12 Leg 29 | . 36 23 Storage 12 | . 12 12 Protection 4 | . 10 . Energy Gun 5 | . 12 . Ballistic Gun 10 | . 7 12 Special Weapon 8 | . 4 11 Peak Build Rating 10 | 7 10 10 Average Rating 8 | 5 8 8 On Entrance 5 | . 7 9 Avg Prop Armor Cover (%) . | . . . Naked Turns . | . . . Heaviest Build 33 | 22 33 31 Greatest Support 30 | 20 30 30 Greatest Overweight (x) 2 | 1 2 2 Average Overweight (x) . | . . 1 Largest Inventory Capacity 15 | 10 15 15 Average Capacity 13 | 8 12 15 Most Carried 15 | 5 15 14 Average Carried 11 | . 8 14 Final Capacity 15 | 10 15 15 Final Carried 14 | . 14 14 Class Distribution -------------------- 100% | Hacker-Mutant Dominant Class ---------------- Hacker-Mutant | -10/Materials Hacker-Mutant | -10/Subcaves Resources | -11 -10 -10 ----------- Run | Yrd Mat Sub Matter Collected 669 | 183 302 184 Remotely . | . . . Salvage Created 680 | . 514 166 Parts 39 | . 31 8 Haulers Intercepted 1 | . 1 . Recyclers Shooed 1 | . 1 . Parts Field Recycled . | . . . Retrieved Matter . | . . . Parts Self-Destructed . | . . . Prevented . | . . . Parts Restored . | . . . Kills | -11 -10 -10 ------- Run | Yrd Mat Sub Combat Hostiles Destroyed 15 | . 10 5 Guns 12 | . 9 3 Cannons 2 | . . 2 AOE 1 | . 1 . Classes Destroyed 8 | . 5 3 Worker 1 | . 1 . Hauler 1 | . 1 . Watcher 1 | . 1 . Swarmer 2 | . 2 . Grunt 8 | . 8 . Sentry 1 | . . 1 Cobbler 1 | . . 1 Subdweller 4 | . . 4 Best Kill Streak 4 | . 4 1 Combat Bots Only 3 | . 3 1 Max Kills in Single Turn 1 | . 1 1 Gunslinging . | . . . Exploded 1 | . 1 . Melee . | . . . Uniques/NPCs Destroyed . | . . . Combat | -11 -10 -10 -------- Run | Yrd Mat Sub Hostile Shots Fired 114 | . 69 45 Missed 19 | . 8 11 Hits 95 | . 61 34 Projectile 95 | . 61 34 Damage Taken 923 | . 451 472 Core 255 | . 91 164 Absorbed by Shields . | . . . Ignored by Resistances 565 | . 284 281 Core Remaining (%) 100 | 100 . . Volleys Fired 86 | . 56 30 Largest 2 | . 2 2 Hottest 140 | . 140 123 Shots Fired 172 | . 112 60 Gun 155 | . 110 45 Cannon . | . . . Launcher . | . . . Special 17 | . 2 15 Kinetic 95 | . 50 45 Thermal 21 | . 6 15 Explosive . | . . . Electromagnetic 56 | . 56 . Robot Hit Streak 36 | . 26 36 Robot Miss Streak 3 | . 3 1 Penetration Max . | . . . Secondary Targets 1 | . 1 . Max Gunslinging Chain 1 | . 1 . Shots Hit Robots 122 | . 76 46 Core Hits 37 | . 24 13 Critical Kills . | . . . Critical Parts Destroyed 1 | . 1 . Critical Strikes 1 | . 1 . Destroy 1 | . 1 . Melee Attacks . | . . . Impact . | . . . Slashing . | . . . Piercing . | . . . Sneak Attacks . | . . . Combat Hostiles . | . . . Follow-up Attacks . | . . . Damage Inflicted 1556 | . 1034 522 Guns 1248 | . 966 282 Cannons . | . . . Explosions 44 | . 44 . Melee . | . . . Ramming . | . . . Kinetic 764 | . 482 282 Thermal 308 | . 68 240 Explosive . | . . . Electromagnetic 484 | . 484 . Impact . | . . . Slashing . | . . . Piercing . | . . . Highest Corruption . | . . . Average Corruption . | . . . Corruption Purged . | . . . Corruption Blocked . | . . . Overload Shots . | . . . Overflow Damage 9 | . 9 . Projectiles 9 | . 9 . Explosions . | . . . Melee . | . . . Knockbacks . | . . . Impact . | . . . Kinetic . | . . . Secondary . | . . . Self-Inflicted Damage . | . . . Shots . | . . . Rammed . | . . . Targets Rammed 1 | . 1 . Kicked 1 | . 1 . Crushed . | . . . Highest Temperature 279 | . 279 . Average Temperature 98 | . 98 . Received Heat Transfer 543 | . 390 153 Effects 1 | . 1 . Energy Bleed 1 | . 1 . Siege Activations . | . . . Martial Activations . | . . . Shielding Activations . | . . . Robots Disrupted . | . . . Combat Hostiles . | . . . Robots Corrupted . | . . . Combat Hostiles . | . . . Parts Fried . | . . . Impact Corruptions . | . . . Robots Melted . | . . . Combat Hostiles . | . . . Parts Melted . | . . . Heat Transferred 550 | . 50 500 Parts Sabotaged . | . . . Parts Stolen . | . . . Parts Stripped . | . . . Power Chain Reactions 1 | . 1 . Alert | -11 -10 -10 ------- Run | Yrd Mat Sub Maximum Alert Level . | . . . Low Security (%) 100 | 100 100 . Level 1 . | . . . Level 2 . | . . . Level 3 . | . . . Level 4 . | . . . Level 5 . | . . . High Security . | . . . Max Security . | . . . Peak Influence 70 | . 70 . Initial . | . . . Average 9 | . 10 . Influence Increases 385 | . 365 20 Destroy 0b10 Robot/C 220 | . 200 20 Destroy 0b10 Robot/NC 15 | . 15 . Destroy Leader 34 | . 34 . Successful Hack 13 | . 13 . Disable Machine 8 | . 8 . Destroy Structure 5 | . 5 . Lose Combat Pursuer 90 | . 90 . Influence Decreases 385 | . 365 20 Time Decay 320 | . 300 20 Purge Threat 65 | . 65 . Squads Dispatched 1 | . 1 . Investigation 1 | . 1 . Extermination . | . . . Reinforcement . | . . . Assault . | . . . Garrison . | . . . Intercept . | . . . Searches Triggered . | . . . Construction Impeded . | . . . Haulers Reinforced . | . . . Active Scanning Responses . | . . . Cargo Convoy Interrupts . | . . . Stealth | -11 -10 -10 --------- Run | Yrd Mat Sub Distress Signals . | . . . Communications Jammed . | . . . Distress Signals . | . . . Times Spotted 27 | . 21 6 Peak Tracking Total 4 | . 4 1 Tactical Retreats 5 | . 5 . Traps | -11 -10 -10 ------- Run | Yrd Mat Sub Traps Triggered 2 | . 2 . Indirectly . | . . . Trap Hack Attempts . | . . . Triggered . | . . . Disarmed . | . . . Reprogrammed . | . . . Reused . | . . . Traps Extracted . | . . . Installed . | . . . Triggered . | . . . Machines | -11 -10 -10 ---------- Run | Yrd Mat Sub Machines Disabled 2 | . 2 . Max in Single Turn 1 | . 1 . Machines Repaired . | . . . Machines Dismantled . | . . . Machines Sabotaged . | . . . Overloaded Fab Kills . | . . . Hacking | -11 -10 -10 --------- Run | Yrd Mat Sub Machines Accessed 6 | . 6 . Terminals 5 | . 5 . Fabricators . | . . . Repair Stations . | . . . Recycling Units 1 | . 1 . Scanalyzers . | . . . Garrison Access . | . . . Total Hacks 16 | . 16 . Successful 8 | . 8 . Failed 8 | . 8 . Catastrophic 1 | . 1 . Database Lockouts . | . . . Manual 1 | . 1 . Terminals 13 | . 13 . Fabricators . | . . . Repair Stations . | . . . Recycling Units 3 | . 3 . Scanalyzers . | . . . Garrison Access . | . . . Terminal Hacks 7 | . 7 . Prototype ID Bank 1 | . 1 . Alert Level 1 | . 1 . Unreport Threat 1 | . 1 . Hauler Manifests 1 | . 1 . Registered Components 1 | . 1 . Registered Prototypes 1 | . 1 . Zone Layout 1 | . 1 . Fabricator Hacks . | . . . Repair Station Hacks . | . . . Recycling Unit Hacks 1 | . 1 . Retrieve Components 1 | . 1 . Scanalyzer . | . . . Garrison Access Hacks . | . . . Unauthorized Hacks . | . . . Terminals . | . . . Fabricators . | . . . Repair Stations . | . . . Recycling Units . | . . . Scanalyzers . | . . . Garrison Access . | . . . Data Cores Recovered . | . . . Used . | . . . Hacking Detections 5 | . 5 . Full Trace Events 5 | . 5 . Feedback Events . | . . . Feedback Blocked . | . . . Robot Schematics Acquired . | . . . Robots Built . | . . . Authchips . | . . . Time . | . . . Total Robot Build Rating . | . . . Part Schematics Acquired . | . . . Parts Built . | . . . Authchips . | . . . Time . | . . . Total Part Build Rating . | . . . Part Studies Acquired . | . . . Parts Repaired . | . . . Time . | . . . Parts Recycled . | . . . Recycled Matter . | . . . Retrieved Matter . | . . . Retrieved Components 3 | . 3 . Parts Scanalyzed . | . . . Part Schematics Acquired . | . . . Parts Damaged . | . . . Bothacking | -11 -10 -10 ------------ Run | Yrd Mat Sub Used RIF Installer . | . . . Robots Hacked . | . . . Non-combat . | . . . Combat . | . . . Robot Hacks Applied . | . . . Relay Couplers Released . | . . . Fabnet Peak Effective % . | . . . Robots Rewired . | . . . Allies Hacked . | . . . Hacks Repelled . | . . . Allies | -11 -10 -10 -------- Run | Yrd Mat Sub Total Allies . | . . . Largest Group . | . . . Highest-Rated Group . | . . . Highest-Rated Ally . | . . . Total Orders . | . . . Ally Attacks . | . . . Total Damage . | . . . Kills . | . . . Allies Corrupted . | . . . Allies Melted . | . . . Intel | -11 -10 -10 ------- Run | Yrd Mat Sub Active Infowar (turns) . | . . . Robot Analysis Total . | . . . Derelict Logs Recovered 1 | . . 1 Drone Launches . | . . . Drone Recoveries . | . . . Exploration | -11 -10 -10 ------------- Run | Yrd Mat Sub Turns Passed 2768 | 79 1136 1553 Spaces Moved 1418 | 53 631 734 Core 26 | 26 . . Treads . | . . . Legs 1392 | 27 631 734 Wheels . | . . . Hover . | . . . Flight . | . . . Fastest Speed 50 | 50 120 120 Average Speed 169 | 121 147 191 Slowest Speed 260 | 190 260 260 Overloaded Moves . | . . . Propulsion Burnouts . | . . . Robots Hopped . | . . . Potential Cave-ins . | . . . Cave-ins Triggered . | . . . Exploration Rate (%) 42 | 4 79 43 Regions Visited 2 Branch Regions 1 Pre-discovered Areas . | . . . Known Exits Taken 2 | 1 1 . Unknown Exits Taken . | . . . Scrap Searched . | . . . Spaces Dug . | . . . Terrain Destroyed 4 | . 4 . Melee . | . . . Projectile . | . . . AOE 4 | . 4 . Terrain Rammed . | . . . Walls Destroyed . | . . . Machines Disabled . | . . . Actions | -11 -10 -10 --------- Run | Yrd Mat Sub Total 1581 | 67 718 796 Wait 37 | 3 5 29 Move 1416 | 52 630 734 Hop . | . . . Pick Up 22 | 5 17 . Fast Attach 4 | 2 2 . Attach 7 | 5 2 . Detach . | . . . Swap 6 | . 3 3 Drop 2 | . 2 . Fire 86 | . 56 30 Melee . | . . . Ram . | . . . Kick 1 | . 1 . Crush . | . . . Escape Stasis . | . . . Rewire . | . . . Trap . | . . . Miscellaneous . | . . . Route ------- -11/Scrapyard -10/Materials (discovered 5 exits: *Mat x2 / *Min x2 / *Sub) -10/Subcaves (discovered 1 exit: *Mat) History --------- Turn | Location | Event 5 | -11/Scrapyard | Identified exit to Materials 5 | -11/Scrapyard | Discovered exit to Materials (range 16) 80 | -11/Scrapyard | Entered Materials 80 | -10/Materials | Evolved 1 slot: Propulsion x1 300 | -10/Materials | Build established: Hacker-Mutant 339 | -10/Materials | Identified exit to Materials 339 | -10/Materials | Discovered exit to Materials (range 5) 497 | -10/Materials | Identified exit to Mines 497 | -10/Materials | Discovered exit to Mines (range 15) 614 | -10/Materials | Discovered exit to Materials (range 13) 740 | -10/Materials | Discovered exit to Mines (range 14) 1204 | -10/Materials | Identified exit to Subcaves 1204 | -10/Materials | Discovered exit to Subcaves (range 10) 1216 | -10/Materials | Entered Subcaves 1228 | -10/Subcaves | Learned Materials emergency access door positions 1314 | -10/Subcaves | Core integrity fell below 50% 2075 | -10/Subcaves | Identified exit to Materials 2075 | -10/Subcaves | Discovered exit to Materials (range 5) 2554 | -10/Subcaves | Ambushed by angry Subdweller bent on revenge 2670 | -10/Subcaves | Core integrity fell below 20% 2769 | -10/Subcaves | Destroyed by RC-IWK(R) with Subdweller Machine Gun Last Messages --------------- 01440_ Acquired 3 matter. 01716_ Y-45 Defender destroyed. 01721_ Acquired 4 matter. 01730_ Subatomizers dissect the Heat Sink. 02033_ Subatomizers dissect the Wheel. 02075_ EXIT=FOUND: MATERIALS 02518_ 0B-GMW(O) cries out in pain. 02518_ 0B-GMW(O) destroyed. 02554_ HF-0C8(R) angrily emerges from the Twisted Machinery. 02554_ HF-0C8(R): "SUBMAD!" 02555_ Aluminum Leg destroyed. 02571_ HF-0C8(R) destroyed. 02576_ Acquired 19 matter. 02661_ CY-EUW(R) heat short circuits Sub. Power Source. 02669_ CY-EUW(R) destroyed. 02713_ Acquired 8 matter. 02761_ Aluminum Leg destroyed. 02767_ Mining Laser destroyed. Map ----- +----------------------------------------------------+ | ## #####???# "" = #?????? | | # ] ## ##### ! %= ?? | | # #### ## # %= * ### ?? | | ##?# "" " "##?? ?? | | #### " " """###??? ??? | | ###& [ ###"" "###?????# ??? | | ##?# ## ##?###" "#???????? ??? | | ??# #### #??####""#???????? ???? | | ??# #??## "### #####????????## #???? | | ??# ???# " "" #????????????? ????? | | ??#### ##??# <" " ##????????????? #????? | | ?????###???# " ##?????????????????????? | | ???????????# #?????????????????????? | | ?????????#### #?????????????????????? | | ###??#### ### #?????????????????????? | | ### #?# ##????????????????????? | | ### #????????????????????? | | & ## ##????????????????????? | | ## ### ## ##????????????????????? | | ????## #### ##???????????????????? | | ????#" ###??# ##??????????????????? | | ###### ##???#"" ## #??????????????????? | | #" ## ##???# ""## ##??????????????????? | | # & #??#""""## ###???????????????????? | | ### ######?# """ #" #?????????????????????? | | ??#### #??????# """ ""@##?????????????????????? | | ????## #??????## R#??????????????????????? | | ????# #???????## " ??????????????????????? | | ???# ####????????######"""??????????????????????? | | ???####????????????????### ?????????????????????? | | ??????????????????????????# ?????????????????????? | | ???????????????????????????# ????????????????????? | | ????????????????????????????#????????????????????? | | ?????????????????????????????????????????????????? | | ?????????????????????????????????????????????????? | | ?????????????????????????????????????????????????? | | ?????????????????????????????????????????????????? | | ?????????????????????????????????????????????????? | | ?????????????????????????????????????????????????? | | ?????????????????????????????????????????????????? | | ?????????????????????????????????????????????????? | | ?????????????????????????????????????????????????? | | ?????????????????????????????????????????????????? | | ?????????????????????????????????????????????????? | | ?????????????????????????????????????????????????? | | ?????????????????????????????????????????????????? | | ?????????????????????????????????????????????????? | | | | | | | +----------------------------------------------------+ Best States ------------- Heat Dissipation 25 Energy Generation 10 Energy Capacity 250 Matter Stores 300 Matter Capacity 300 Sight Range 16 Terrain Scan Density 10 Armor Coverage 150 Resistance: KI 35 Resistance: TH 35 Resistance: EX 35 Resistance: EM 35 Resistance: I 35 Resistance: S 35 Resistance: P 35 Evasion (%) 55 Offensive Hacking 20 Item Schematics ----------------- None Robot Schematics ------------------ None Fabricated ------------ Nothing Repaired ---------- Nothing Studied --------- None Alien Tech Used ----------------- None Achievements -------------- None Challenges ------------ None Game ------ Seed AssemblyComponentOptics Manual? 0 Play Time 00:14:11 Cumulative 83.9 hours Start 2025.11.13 @ 10:17:25 End 2025.11.13 @ 10:27:55 Sessions 1 Manual Loads 0 Difficulty Explorer Special Mode None Game No. 81 Rogue 0 Adventurer 0 Explorer 81 Win Type - Total 0 Types 0/0/0/0/0/0/0/0/0/0 Lore% 54 Gallery% 55 Achievement% 43 Wizard Run 0 Options --------- Layout 1 ASCII 0 Keyboard 0 Movement Mouse Keybinds 0 Fullscreen 1 Font 24/Smallcaps Map View 50x35 Zoom Use 0% Tactical HUD 1 Map Filters NONE Filters NONE Steam 1 RUN: 6460c0cb-17b3-4ff3-abe7-5d0ffba9a3e5